lending/lending_fUSD_20240219
["ID","MTS","AMOUNT","RATE_DAILY","PERIOD"]
[314447856,1708361466917,-341.76667582,0.00046575,18]
[314447857,1708361466929,-507.09973749,0.00046575,18]
[314447858,1708361466940,-500.0,0.00046575,18]
[314447859,1708361466966,-500.0,0.00046575,18]
[314447860,1708361466980,-500.0,0.00046575,18]
[314447861,1708361466999,-500.0,0.00046575,18]
[314447862,1708361467014,-500.0,0.00046575,18]
[314447863,1708361467030,-542.2348147,0.00046575,18]
[314447864,1708361467040,-530.47423134,0.00046575,18]
[314447865,1708361467071,-500.0,0.00046575,18]
[314447866,1708361467080,-500.0,0.00046575,18]
[314447867,1708361467090,-572.97763768,0.00046575,18]
[314447868,1708361467100,-525.16014107,0.00046575,18]
[314447869,1708361467111,-522.75295497,0.00046575,18]
[314447870,1708361467143,-527.84049008,0.00046575,18]
[314447871,1708361467167,-500.0,0.00046575,18]
[314447872,1708361467187,-527.98309574,0.00046575,18]
[314447873,1708361467202,-500.0,0.00046575,18]
[314447874,1708361467224,-500.0,0.00046575,18]
[314447875,1708361467236,-516.6866162,0.00046575,18]
[314447876,1708361467246,-533.55462278,0.00046575,18]
[314447877,1708361467256,-540.55073936,0.00046575,18]
[314447878,1708361467276,-504.37258902,0.00046575,18]
[314447879,1708361467296,-515.3495442,0.00046575,18]
[314447880,1708361467316,-636.98965917,0.00046575,18]
[314447881,1708361467330,-511.62577566,0.00046575,18]
[314447882,1708361467365,-500.0,0.00046575,18]
[314447883,1708361467376,-532.82198472,0.00046575,18]
[314447884,1708361467387,-500.0,0.00046575,18]
[314447885,1708361467396,-500.0,0.00046575,18]
[314447886,1708361467407,-500.0,0.00046575,18]
[314447887,1708361467417,-544.45561459,0.00046575,18]
[314447888,1708361467426,-526.761003,0.00046575,2]
[314447889,1708361467436,-500.0,0.00046575,18]
[314447890,1708361467447,-540.71931552,0.00046575,18]
[314447891,1708361467457,-500.0,0.00046575,18]
[314447892,1708361467471,-500.0,0.00046575,18]
[314447893,1708361467481,-533.09177709,0.00046575,18]
[314447894,1708361467491,-500.0,0.00046575,18]
[314447895,1708361467501,-500.0,0.00046575,18]
[314447896,1708361467511,-8494.07629844,0.00046575,10]
[314447897,1708361467520,-500.0,0.00046575,18]
[314447898,1708361467530,-633.04262624,0.00046575,18]
[314447899,1708361467540,-503.41414852,0.00046575,18]
[314447900,1708361467549,-500.0,0.00046575,18]
[314447901,1708361467559,-500.0,0.00046575,18]
[314447902,1708361467568,-500.0,0.00046575,10]
[314447903,1708361467577,-500.0,0.00046575,18]
[314447904,1708361467587,-623.42088271,0.00046575,18]
[314447905,1708361467596,-500.0,0.00046575,18]
[314447906,1708361467606,-500.0,0.00046575,18]
[314447907,1708361467615,-500.0,0.00046575,18]
[314447908,1708361467625,-239.07905055,0.00046575,18]
[314447909,1708361467634,-526.75256584,0.00046575,18]
[314447910,1708361467643,-500.0,0.00046575,18]
[314447911,1708361467653,-508.32434695,0.00046575,18]
[314447912,1708361467663,-520.1053024,0.00046575,18]
[314447913,1708361467673,-527.74786345,0.00046575,18]
[314447914,1708361467682,-513.37975125,0.00046575,18]
[314447915,1708361467691,-208.63913797,0.00046575,18]
[314447916,1708361467700,-517.46012179,0.00046575,18]
[314447917,1708361467709,-500.0,0.00046575,18]
[314447918,1708361467723,-500.0,0.00046575,18]
[314447919,1708361467732,-520.34330612,0.00046575,18]
[314447920,1708361467742,-501.78399894,0.00046575,18]
[314447921,1708361467751,-500.0,0.00046575,18]
[314447922,1708361467760,-518.61745227,0.00046575,18]
[314447923,1708361467770,-534.84,0.00046575,2]
[314447924,1708361467779,-508.38162644,0.00046575,18]
[314447925,1708361467788,-500.0,0.00046575,18]
[314447926,1708361467797,-519.70058083,0.00046575,18]
[314447927,1708361467806,-538.21235734,0.00046575,18]
[314447928,1708361467816,-401.64952769,0.00046575,18]
[314447929,1708361467825,-500.0,0.00046575,18]
[314447930,1708361467835,-513.88408332,0.00046575,18]
[314447931,1708361467844,-500.0,0.00046575,18]
[314447932,1708361467853,-500.0,0.00046575,18]
[314447933,1708361467863,-513.80072122,0.00046575,18]
[314447934,1708361467872,-557.48595398,0.00046575,18]
[314447935,1708361467880,-500.0,0.00046575,18]
[314447936,1708361467889,-500.0,0.00046575,18]
[314447937,1708361467898,-500.0,0.00046575,18]
[314447938,1708361467908,-519.38253265,0.00046575,18]
[314447939,1708361467917,-408.98017954,0.00046575,18]
[314447940,1708361467927,-545.82018851,0.00046575,18]
[314447941,1708361467938,-500.0,0.00046575,18]
[314447942,1708361467947,-532.63366397,0.00046575,18]
[314447943,1708361467958,-500.0,0.00046575,18]
[314447944,1708361467968,-507.66763884,0.00046575,18]
[314447945,1708361467979,-580.75268158,0.00046575,18]
[314447946,1708361467989,-549.23455095,0.00046575,18]
[314447947,1708361467999,-500.0,0.00046575,18]
[314447948,1708361468009,-532.95342162,0.00046575,18]
[314447949,1708361468018,-500.0,0.00046575,18]
[314447950,1708361468028,-500.0,0.00046575,18]
[314447951,1708361468039,-549.95800115,0.00046575,18]
[314447952,1708361468049,-522.98206279,0.00046575,18]
[314447953,1708361468060,-500.0,0.00046575,18]
[314447954,1708361468070,-500.0,0.00046575,18]
[314447955,1708361468080,-509.19934973,0.00046575,18]
[314447956,1708361468091,-506.55956734,0.00046575,18]
[314447957,1708361468101,-500.0,0.00046575,18]
[314447958,1708361468111,-526.18440205,0.00046575,18]
[314447959,1708361468122,-500.0,0.00046575,18]
[314447960,1708361468133,-511.60361636,0.00046575,18]
[314447961,1708361468143,-515.23522736,0.00046575,18]
[314447962,1708361468154,-533.6370075,0.00046575,18]
[314447963,1708361468164,-514.72948923,0.00046575,18]
[314447964,1708361468175,-500.0,0.00046575,18]
[314447965,1708361468185,-500.0,0.00046575,18]
[314447966,1708361468194,-500.0,0.00046575,18]
[314447967,1708361468205,-507.0041196,0.00046575,18]
[314447968,1708361468216,-500.0,0.00046575,18]
[314447969,1708361468229,-528.32493644,0.00046575,18]
[314447970,1708361468239,-500.0,0.00046575,18]
[314447971,1708361468250,-500.0,0.00046575,18]
[314447972,1708361468260,-500.0,0.00046575,18]
[314447973,1708361468270,-605.68655426,0.00046575,18]
[314447974,1708361468280,-500.0,0.00046575,18]
[314447975,1708361468290,-530.56010016,0.00046575,18]
[314447976,1708361468301,-246.97227749,0.00046575,18]
[314447977,1708361468481,-500.0,0.00046575,18]
[314447978,1708361468492,-500.0,0.00046575,18]
[314447979,1708361468502,-500.0,0.00046575,18]
[314447980,1708361468513,-513.81299924,0.00046575,18]
[314447981,1708361468523,-524.86041969,0.00046575,18]
[314447982,1708361468532,-508.37077568,0.00046575,18]
[314447983,1708361468543,-527.03018077,0.00046575,18]
[314447984,1708361468553,-500.0,0.00046575,18]
[314447985,1708361468563,-517.24872428,0.00046575,18]
[314447986,1708361468573,-500.0,0.00046575,18]
[314447987,1708361468584,-500.0,0.00046575,18]
[314447988,1708361468594,-511.43142818,0.00046575,18]
[314447989,1708361468604,-211.70325341,0.00046575,18]
[314447990,1708361468613,-500.0,0.00046575,18]
[314447991,1708361468622,-511.84918434,0.00046575,18]
[314447992,1708361468631,-500.0,0.00046575,18]
[314447993,1708361468640,-500.0,0.00046575,18]
[314447994,1708361468649,-500.0,0.00046575,18]
[314447995,1708361468658,-533.31861306,0.00046575,18]
[314447996,1708361468669,-500.0,0.00046575,18]
[314447997,1708361468678,-531.39905476,0.00046575,18]
[314447998,1708361468687,-500.0,0.00046575,18]
[314447999,1708361468699,-537.21444976,0.00046575,18]
[314448000,1708361468708,-500.0,0.00046575,18]
[314448001,1708361468721,-511.42372965,0.00046575,18]
[314448002,1708361468731,-500.0,0.00046575,18]
[314448003,1708361468741,-295.18414369,0.00046575,18]
[314448004,1708361468754,-575.91278163,0.00046575,18]
[314448005,1708361468763,-1001.28512078,0.00046575,2]
[314448006,1708361468773,-226.25505524,0.00046575,18]
[314448007,1708361468784,-527.64970607,0.00046575,18]
[314448008,1708361468792,-577.72335586,0.00046575,18]
[314448009,1708361468807,-513.28760743,0.00046575,18]
[314448010,1708361468816,-482.84790032,0.00046575,18]
[314448011,1708361468826,-564.18436458,0.00046575,18]
[314448012,1708361468836,-529.04088367,0.00046575,18]
[314448013,1708361468857,-406.99127441,0.00046575,18]
[314448014,1708361468872,-515.04933322,0.00046575,18]
[314448015,1708361468881,-500.0,0.00046575,18]
[314448016,1708361468893,-500.0,0.00046575,18]
[314448017,1708361468906,-524.51318209,0.00046575,18]
[314448018,1708361468915,-541.81899154,0.00046575,18]
[314448019,1708361468925,-523.88943873,0.00046575,18]
[314448020,1708361468937,-500.0,0.00046575,18]
[314448021,1708361468955,-500.0,0.00046575,18]
[314448022,1708361468965,-525.71863713,0.00046575,18]
[314448023,1708361468974,-228.06118036,0.00046575,18]
[314448024,1708361469000,-500.0,0.00046575,18]
[314448025,1708361469016,-500.0,0.00046575,18]
[314448026,1708361469029,-500.0,0.00046575,50]
[314448027,1708361469039,-540.5939103,0.00046575,18]
[314448028,1708361469050,-500.0,0.00046575,18]
[314448029,1708361469059,-621.54827555,0.00046575,18]
[314448030,1708361469069,-515.0699004,0.00046575,18]
[314448031,1708361469085,-525.26676921,0.00046575,2]
[314448032,1708361469096,-190.87052405,0.00046575,18]
[314448033,1708361469105,-500.0,0.00046575,18]
[314448034,1708361469115,-524.7258883,0.00046575,18]
[314448035,1708361469125,-500.0,0.00046575,18]
[314448036,1708361469136,-500.0,0.00046575,18]
[314448037,1708361469145,-2000.0,0.00046575,18]
[314448038,1708361469154,-2000.0,0.00046575,18]
[314448039,1708361469164,-2000.0,0.00046575,18]
[314448040,1708361469173,-2000.0,0.00046575,18]
[314448041,1708361469183,-2000.0,0.00046575,18]
[314448042,1708361469193,-2000.0,0.00046575,18]
[314448043,1708361469202,-2000.0,0.00046575,18]
[314448044,1708361469211,-502.18950781,0.00046575,18]
[314448045,1708361469221,-2000.0,0.00046575,18]
[314448046,1708361469241,-225.6696121,0.00046575,18]
[314448047,1708361469250,-500.0,0.00046575,18]
[314448048,1708361469260,-567.84891301,0.00046575,18]
[314448049,1708361469269,-500.0,0.00046575,18]
[314448050,1708361469279,-524.33817059,0.00046575,18]
[314448051,1708361469290,-500.0,0.00046575,18]
[314448052,1708361469300,-534.80792103,0.00046575,18]
[314448053,1708361469315,-520.91164408,0.00046575,18]
[314448054,1708361469324,-535.70169277,0.00046575,18]
[314448055,1708361469335,-517.38773704,0.00046575,18]
[314448056,1708361469345,-500.0,0.00046575,18]
[314448057,1708361469364,-524.77497954,0.00046575,18]
[314448058,1708361469374,-534.990551,0.00046575,7]
[314448059,1708361469384,-1107.1,0.00046575,18]
[314448060,1708361469394,-500.0,0.00046575,18]
[314448061,1708361469403,-573.16307061,0.00046575,18]
[314448062,1708361469428,-208.42708148,0.00046575,18]
[314448063,1708361469439,-514.22020636,0.00046575,18]
[314448064,1708361469451,-503.12678738,0.00046575,18]
[314448065,1708361469461,-521.59197486,0.00046575,18]
[314448066,1708361469472,-318.17433343,0.00046575,18]
[314448067,1708361469482,-500.65860745,0.00046575,2]
[314448068,1708361469491,-513.29472097,0.00046575,18]
[314448069,1708361469501,-508.03456793,0.00046575,18]
[314448070,1708361469511,-500.0,0.00046575,18]
[314448071,1708361469521,-521.59020209,0.00046575,18]
[314448072,1708361469531,-527.82772417,0.00046575,18]
[314448073,1708361469541,-531.11673444,0.00046575,18]
[314448074,1708361469550,-430.40989343,0.00046575,18]
[314448075,1708361469559,-500.0,0.00046575,18]
[314448076,1708361469569,-505.60561827,0.00046575,18]
[314448077,1708361469579,-301.28727478,0.00046575,18]
[314448078,1708361469588,-512.4358434,0.00046575,18]
[314448079,1708361469599,-513.25528759,0.00046575,18]
[314448080,1708361469608,-354.62882629,0.00046575,18]
[314448081,1708361469617,-500.0,0.00046575,18]
[314448082,1708361469627,-500.0,0.00046575,18]
[314448083,1708361469635,-521.78864298,0.00046575,18]
[314448084,1708361469644,-519.67430693,0.00046575,18]
[314448085,1708361469654,-196.2231047,0.00046575,18]
[314448086,1708361469663,-500.0,0.00046575,18]
[314448087,1708361469673,-500.0,0.00046575,18]
[314448088,1708361469683,-517.6777899,0.00046575,18]
[314448089,1708361469693,-500.0,0.00046575,18]
[314448090,1708361469702,-504.03742043,0.00046575,18]
[314448091,1708361469711,-528.76177935,0.00046575,18]
[314448092,1708361469722,-510.80806482,0.00046575,18]
[314448093,1708361469732,-500.0,0.00046575,18]
[314448094,1708361469741,-169.27659088,0.00046575,18]
[314448095,1708361469750,-500.0,0.00046575,18]
[314448096,1708361469760,-505.46263258,0.00046575,18]
[314448097,1708361469769,-500.0,0.00046575,18]
[314448098,1708361469778,-520.28158138,0.00046575,18]
[314448099,1708361469787,-530.21005344,0.00046575,18]
[314448100,1708361469797,-512.8857648,0.00046575,18]
[314448101,1708361469806,-500.0,0.00046575,18]
[314448102,1708361469816,-502.33918699,0.00046575,18]
[314448103,1708361469826,-501.02826616,0.00046575,2]
[314448104,1708361469837,-505.42651565,0.00046575,18]
[314448105,1708361469847,-508.01695249,0.00046575,18]
[314448106,1708361469857,-507.9844896,0.00046575,18]
[314448107,1708361469866,-500.0,0.00046575,18]
[314448108,1708361469876,-500.0,0.00046575,18]
[314448109,1708361469886,-516.32814621,0.00046575,18]
[314448110,1708361469896,-335.01171436,0.00046575,18]
[314448111,1708361469905,-512.82151317,0.00046575,18]
[314448112,1708361469915,-515.69764856,0.00046575,18]
[314448113,1708361469925,-525.46323436,0.00046575,18]
[314448114,1708361469937,-511.2698504,0.00046575,18]
[314448115,1708361469946,-525.21554798,0.00046575,18]
[314448116,1708361469956,-527.04729685,0.00046575,18]
[314448117,1708361469968,-506.19321488,0.00046575,18]
[314448118,1708361469980,-500.0,0.00046575,18]
[314448119,1708361469990,-516.04703399,0.00046575,18]
[314448120,1708361470000,-553.06108991,0.00046575,18]
[314448121,1708361470010,-519.78110669,0.00046575,18]
[314448122,1708361470020,-500.0,0.00046575,18]
[314448123,1708361470030,-528.72863793,0.00046575,18]
[314448124,1708361470040,-589.28969434,0.00046575,18]
[314448125,1708361470051,-500.0,0.00046575,18]
[314448126,1708361470061,-500.0,0.00046575,18]
[314448127,1708361470071,-500.0,0.00046575,18]
[314448128,1708361470081,-521.58988233,0.00046575,18]
[314448129,1708361470091,-511.99484073,0.00046575,18]
[314448130,1708361470100,-500.0,0.00046575,18]
[314448131,1708361470111,-502.27340164,0.00046575,18]
[314448132,1708361470121,-504.43810748,0.00046575,18]
[314448133,1708361470130,-496.08903007,0.00046575,18]
[314448134,1708361470141,-500.0,0.00046575,18]
[314448135,1708361470150,-526.05224545,0.00046575,18]
[314448136,1708361470159,-500.0,0.00046575,18]
[314448137,1708361470169,-500.0,0.00046575,18]
[314448138,1708361470179,-524.26934345,0.00046575,18]
[314448139,1708361470188,-500.0,0.00046575,18]
[314448140,1708361470198,-549.47473216,0.00046575,18]
[314448141,1708361470208,-624.77026013,0.00046575,15]
[314448142,1708361470219,-531.36481142,0.00046575,18]
[314448143,1708361470229,-538.08683355,0.00046575,18]
[314448144,1708361470238,-565.19582198,0.00046575,18]
[314448145,1708361470248,-518.97220974,0.00046575,18]
[314448146,1708361470258,-500.0,0.00046575,18]
[314448147,1708361470268,-500.0,0.00046575,18]
[314448148,1708361470279,-554.1609509,0.00046575,18]
[314448149,1708361470289,-500.0,0.00046575,18]
[314448150,1708361470298,-528.28287591,0.00046575,18]
[314448151,1708361470308,-500.0,0.00046575,18]
[314448152,1708361470319,-500.0,0.00046575,18]
[314448153,1708361470329,-530.05423037,0.00046575,18]
[314448154,1708361470339,-525.27229414,0.00046575,18]
[314448155,1708361470349,-500.0,0.00046575,18]
[314448156,1708361470359,-481.32101524,0.00046575,18]
[314448157,1708361470368,-519.9079625,0.00046575,18]
[314448158,1708361470378,-500.0,0.00046575,18]
[314448159,1708361470388,-500.0,0.00046575,18]
[314448160,1708361470398,-537.21683473,0.00046575,18]
[314448161,1708361470408,-598.39014629,0.00046575,18]
[314448162,1708361470418,-500.0,0.00046575,18]
[314448163,1708361470428,-500.0,0.00046575,18]
[314448164,1708361470437,-560.74494139,0.00046575,18]
[314448165,1708361470447,-519.03622925,0.00046575,18]
[314448166,1708361470457,-532.627072,0.00046575,18]
[314448167,1708361470468,-520.94301008,0.00046575,18]
[314448168,1708361470478,-500.0,0.00046575,18]
[314448169,1708361470487,-500.0,0.00046575,18]
[314448170,1708361470497,-520.12334977,0.00046575,18]
[314448171,1708361470507,-500.0,0.00046575,18]
[314448172,1708361470516,-535.83927255,0.00046575,18]
[314448173,1708361470526,-539.02577576,0.00046575,18]
[314448174,1708361470536,-515.11668623,0.00046575,18]
[314448175,1708361470546,-500.0,0.00046575,18]
[314448176,1708361470555,-500.0,0.00046575,18]
[314448177,1708361470564,-540.58741924,0.00046575,18]
[314448178,1708361470574,-500.0,0.00046575,18]
[314448179,1708361470583,-500.0,0.00046575,18]
[314448180,1708361470594,-500.0,0.00046575,18]
[314448181,1708361470603,-500.0,0.00046575,18]
[314448182,1708361470614,-500.0,0.00046575,18]
[314448183,1708361470624,-500.0,0.00046575,18]
[314448184,1708361470634,-500.0,0.00046575,18]
[314448185,1708361470643,-544.12076947,0.00046575,18]
[314448186,1708361470654,-542.23474959,0.00046575,18]
[314448187,1708361470663,-500.0,0.00046575,18]
[314448188,1708361470673,-500.0,0.00046575,18]
[314448189,1708361470683,-500.0,0.00046575,18]
[314448190,1708361470693,-500.0,0.00046575,18]
[314448191,1708361470702,-500.0,0.00046575,18]
[314448192,1708361470712,-531.24898288,0.00046575,18]
[314448193,1708361470723,-500.0,0.00046575,18]
[314448194,1708361470733,-500.0,0.00046575,18]
[314448195,1708361470743,-500.0,0.00046575,18]
[314448196,1708361470753,-500.0,0.00046575,18]
[314448197,1708361470762,-510.29462384,0.00046575,18]
[314448198,1708361470771,-561.83581743,0.00046575,18]
[314448199,1708361470781,-520.50946066,0.00046575,18]
[314448200,1708361470791,-571.00188616,0.00046575,2]
[314448201,1708361470800,-500.0,0.00046575,18]
[314448202,1708361470809,-500.0,0.00046575,18]
[314448203,1708361470819,-500.0,0.00046575,18]
[314448204,1708361470830,-528.5220808,0.00046575,18]
[314448205,1708361470841,-500.0,0.00046575,18]
[314448206,1708361470851,-504.27848659,0.00046575,18]
[314448207,1708361470860,-500.0,0.00046575,18]
[314448208,1708361470870,-553.37079035,0.00046575,18]
[314448209,1708361470880,-500.0,0.00046575,18]
[314448210,1708361470890,-500.0,0.00046575,18]
[314448211,1708361470902,-548.57967956,0.00046575,18]
[314448212,1708361470912,-494.55578422,0.00046575,18]
[314448213,1708361470922,-500.0,0.00046575,18]
[314448214,1708361470936,-500.0,0.00046575,18]
[314448215,1708361470946,-531.28620437,0.00046575,18]
[314448216,1708361470957,-500.0,0.00046575,18]
[314448217,1708361470970,-500.0,0.00046575,18]
[314448218,1708361470980,-539.19948556,0.00046575,18]
[314448219,1708361470989,-500.0,0.00046575,18]
[314448220,1708361470999,-516.04939127,0.00046575,18]
[314448221,1708361471009,-500.0,0.00046575,18]
[314448222,1708361471019,-500.0,0.00046575,18]
[314448223,1708361471029,-500.0,0.00046575,18]
[314448224,1708361471039,-500.0,0.00046575,18]
[314448225,1708361471050,-517.84816447,0.00046575,18]
[314448226,1708361471060,-500.0,0.00046575,18]
[314448227,1708361471071,-540.16972881,0.00046575,18]
[314448228,1708361471080,-500.0,0.00046575,18]
[314448229,1708361471091,-163.38569547,0.00046575,15]
[314448230,1708361471101,-541.99254431,0.00046575,18]
[314448231,1708361471111,-500.0,0.00046575,18]
[314448232,1708361471122,-500.0,0.00046575,18]
[314448233,1708361471131,-500.0,0.00046575,18]
[314448234,1708361471141,-500.0,0.00046575,18]
[314448235,1708361471151,-527.60322477,0.00046575,18]
[314448236,1708361471160,-500.0,0.00046575,18]
[314448237,1708361471170,-500.0,0.00046575,18]
[314448238,1708361471180,-500.0,0.00046575,18]
[314448239,1708361471190,-500.0,0.00046575,18]
[314448240,1708361471199,-589.96812274,0.00046575,18]
[314448241,1708361471209,-500.0,0.00046575,2]
[314448242,1708361471222,-500.0,0.00046575,18]
[314448243,1708361471233,-500.0,0.00046575,18]
[314448244,1708361471243,-500.0,0.00046575,18]
[314448245,1708361471252,-2448.33,0.00046575,2]
[314448246,1708361471262,-500.0,0.00046575,18]
[314448247,1708361471271,-500.0,0.00046575,18]
[314448248,1708361471282,-500.0,0.00046575,18]
[314448249,1708361471291,-530.13236753,0.00046575,18]
[314448250,1708361471301,-527.26160902,0.00046575,18]
[314448251,1708361471311,-500.0,0.00046575,18]
[314448252,1708361471321,-500.0,0.00046575,2]
[314448253,1708361471330,-500.0,0.00046575,18]
[314448254,1708361471340,-500.0,0.00046575,18]
[314448255,1708361471350,-506.73640229,0.00046575,18]
[314448256,1708361471359,-500.0,0.00046575,18]
[314448257,1708361471369,-510.54022543,0.00046575,18]
[314448258,1708361471379,-554.06497886,0.00046575,18]
[314448259,1708361471388,-469.46668654,0.00046575,18]
[314448260,1708361471398,-525.46450852,0.00046575,18]
[314448261,1708361471408,-500.0,0.00046575,18]
[314448262,1708361471417,-500.0,0.00046575,18]
[314448263,1708361471427,-500.0,0.00046575,18]
[314448264,1708361471437,-544.51573983,0.00046575,18]
[314448265,1708361471447,-500.0,0.00046575,18]
[314448266,1708361471456,-500.0,0.00046575,2]
[314448267,1708361471467,-548.24027119,0.00046575,18]
[314448268,1708361471477,-500.0,0.00046575,18]
[314448269,1708361471487,-500.0,0.00046575,18]
[314448270,1708361471497,-500.0,0.00046575,18]
[314448271,1708361471506,-500.0,0.00046575,18]
[314448272,1708361471515,-500.0,0.00046575,18]
[314448273,1708361471525,-500.0,0.00046575,18]
[314448274,1708361471534,-500.0,0.00046575,18]
[314448275,1708361471543,-272.13456688,0.00046575,18]
[314448276,1708361471553,-500.0,0.00046575,18]
[314448277,1708361471562,-153.49506639,0.00046575,18]
[314448278,1708361471572,-223.93106405,0.00046575,18]
[314448279,1708361471582,-556.09554487,0.00046575,18]
[314448280,1708361471592,-585.68240057,0.00046575,18]
[314448281,1708361471601,-500.0,0.00046575,18]
[314448282,1708361471611,-500.0,0.00046575,18]
[314448283,1708361471620,-500.0,0.00046575,18]
[314448284,1708361471630,-500.0,0.00046575,18]
[314448285,1708361471639,-500.0,0.00046575,18]
[314448286,1708361471649,-520.96358328,0.00046575,18]
[314448287,1708361471659,-500.0,0.00046575,18]
[314448288,1708361471668,-500.0,0.00046575,18]
[314448289,1708361471678,-500.0,0.00046575,18]
[314448290,1708361471688,-500.0,0.00046575,18]
[314448291,1708361471697,-531.38675184,0.00046575,18]
[314448292,1708361471706,-525.60512205,0.00046575,18]
[314448293,1708361471719,-1000.0,0.00046575,7]
[314448294,1708361471728,-500.0,0.00046575,18]
[314448295,1708361471738,-500.0,0.00046575,18]
[314448296,1708361471747,-500.0,0.00046575,18]
[314448297,1708361471896,-500.0,0.00046575,18]
[314448298,1708361471907,-500.0,0.00046575,18]
[314448299,1708361471917,-500.0,0.00046575,18]
[314448300,1708361471928,-534.90157549,0.00046575,18]
[314448301,1708361471938,-521.62862796,0.00046575,18]
[314448302,1708361471948,-529.3838136,0.00046575,18]
[314448303,1708361471959,-500.0,0.00046575,18]
[314448304,1708361471973,-496.16045612,0.00046575,18]
[314448305,1708361471984,-500.0,0.00046575,18]
[314448306,1708361471994,-500.0,0.00046575,18]
[314448307,1708361472004,-500.0,0.00046575,18]
[314448308,1708361472015,-500.0,0.00046575,18]
[314448309,1708361472025,-500.0,0.00046575,18]
[314448310,1708361472034,-500.0,0.00046575,18]
[314448311,1708361472045,-500.0,0.00046575,18]
[314448312,1708361472055,-500.0,0.00046575,18]
[314448313,1708361472065,-500.0,0.00046575,18]
[314448314,1708361472075,-500.0,0.00046575,18]
[314448315,1708361472085,-500.0,0.00046575,18]
[314448316,1708361472095,-500.0,0.00046575,18]
[314448317,1708361472105,-500.0,0.00046575,18]
[314448318,1708361472115,-537.57441814,0.00046575,18]
[314448319,1708361472124,-500.0,0.00046575,18]
[314448320,1708361472134,-506.79646131,0.00046575,18]
[314448321,1708361472144,-500.0,0.00046575,18]
[314448322,1708361472154,-500.0,0.00046575,18]
[314448323,1708361472163,-500.0,0.00046575,18]
[314448324,1708361472174,-526.78674864,0.00046575,18]
[314448325,1708361472184,-521.76619979,0.00046575,18]
[314448326,1708361472194,-502.55820688,0.00046575,18]
[314448327,1708361472204,-500.0,0.00046575,18]
[314448328,1708361472217,-518.05984577,0.00046575,18]
[314448329,1708361472227,-500.0,0.00046575,18]
[314448330,1708361472238,-500.0,0.00046575,18]
[314448331,1708361472248,-500.0,0.00046575,18]
[314448332,1708361472258,-500.0,0.00046575,18]
[314448333,1708361472268,-1000.0,0.00046575,2]
[314448334,1708361472279,-500.0,0.00046575,18]
[314448335,1708361472290,-536.22191233,0.00046575,18]
[314448336,1708361472300,-500.0,0.00046575,18]
[314448337,1708361472310,-533.03295788,0.00046575,18]
[314448338,1708361472321,-524.62077972,0.00046575,18]
[314448339,1708361472332,-500.0,0.00046575,18]
[314448340,1708361472341,-500.0,0.00046575,18]
[314448341,1708361472352,-500.0,0.00046575,18]
[314448342,1708361472362,-535.60883173,0.00046575,18]
[314448343,1708361472372,-500.0,0.00046575,18]
[314448344,1708361472382,-500.0,0.00046575,18]
[314448345,1708361472392,-500.0,0.00046575,18]
[314448346,1708361472402,-500.0,0.00046575,18]
[314448347,1708361472411,-500.0,0.00046575,18]
[314448348,1708361472421,-500.0,0.00046575,18]
[314448349,1708361472430,-527.74088538,0.00046575,18]
[314448350,1708361472439,-500.0,0.00046575,18]
[314448351,1708361472448,-500.0,0.00046575,18]
[314448352,1708361472457,-500.0,0.00046575,18]
[314448353,1708361472470,-500.0,0.00046575,18]
[314448354,1708361472480,-500.0,0.00046575,18]
[314448355,1708361472490,-500.0,0.00046575,18]